bitfinex/quotes_ETHUSD_20241129
["timestamp","ask_amount","ask_price","bid_price","bid_amount"]
[1732900884068,2.78629,3589.0,3588.6,0.51887554]
[1732900884269,2.78629,3589.0,3588.7,0.51887554]
[1732900884469,0.8351,3589.4,3588.3,0.43238309]
[1732900884718,0.8351,3588.7,3588.4,0.51904346]
[1732900885005,2.7866,3588.6,3588.5,0.51904346]
[1732900885384,3.35397189,3588.8,3587.0,2.78784]
[1732900885385,0.8351,3587.9,3587.0,2.78784]
[1732900885700,0.8351,3587.9,3587.1,3.79366087]
[1732900885701,3.62225,3587.9,3587.1,3.79366087]
[1732900886009,3.62225,3587.9,3587.2,0.51937634]
[1732900886308,0.8351,3587.9,3587.3,3.30690634]
[1732900886604,2.78701,3588.1,3587.4,3.30684634]
[1732900886902,0.5522194,3588.0,3587.5,0.51937634]
[1732900887070,0.5522194,3588.0,3587.6,0.51937634]
[1732900887265,3.3392894,3588.0,3587.7,0.51937634]
[1732900887471,2.78716,3587.9,3587.8,0.51937634]
[1732900887696,0.5522194,3588.0,3587.8,0.51937634]
[1732900888008,0.5522194,3588.0,3587.9,0.51937634]
[1732900888365,3.3392794,3588.0,3587.9,0.51937634]
[1732900888902,3.3392794,3588.0,3587.3,2.78759]
[1732900889063,3.3392794,3588.0,3587.4,1.10532786]
[1732900889260,0.5522194,3588.0,3587.5,0.51991646]
[1732900889462,0.5522194,3588.0,3587.6,0.51991646]
[1732900889734,2.78723,3587.8,3587.7,0.52015661]
[1732900889861,2.78723,3587.8,3585.4,0.1]
[1732900889862,0.8351,3587.7,3586.1,4.07387]
[1732900890067,3.62306,3586.9,3586.2,1.20652018]
[1732900890362,3.62306,3586.9,3586.3,0.52026418]
[1732900890363,2.78825,3586.5,3586.3,0.52026418]
[1732900890595,3.62304,3586.9,3586.4,0.52026418]
[1732900890909,0.56855627,3586.5,3586.0,2.78856]
[1732900891062,0.56855627,3586.5,3586.1,3.30859829]
[1732900891262,0.56855627,3586.5,3585.8,4.07416]
[1732900891263,0.56855627,3586.5,3586.2,0.52006829]
[1732900891508,0.56855627,3586.5,3586.3,0.52006829]
[1732900891665,0.56855627,3586.5,3585.9,2.78865]
[1732900891871,0.56855627,3586.5,3586.0,0.92718736]
[1732900892194,2.78831,3586.4,3585.3,4.09475]
[1732900892413,2.78862,3586.0,3585.4,0.51951888]
[1732900892716,2.78862,3586.0,3584.9,4.09506]
[1732900892717,2.78862,3586.0,3585.0,2.78939]
[1732900893026,0.8351,3586.4,3584.9,1.3056]
[1732900893027,2.78879,3585.8,3585.1,0.51958214]
[1732900893332,2.78887,3585.7,3585.1,0.46145821]
[1732900893614,2.78887,3585.7,3584.7,2.78962]
[1732900893615,2.78916,3585.3,3584.5,4.07265]
[1732900893965,0.8351,3585.5,3583.3,5.20773742]
[1732900893966,2.78947,3585.0,3584.2,2.78997]
[1732900894166,0.8351,3585.5,3584.5,2.78971]
[1732900894167,3.62417,3585.5,3584.5,2.78971]
[1732900894375,2.78892,3585.7,3584.9,1.2829]
[1732900894618,0.8351,3585.9,3584.9,1.2829]
[1732900894619,3.62382,3585.9,3584.9,1.2829]
[1732900894784,0.56732088,3585.5,3584.9,4.07231]
[1732900894981,0.56732088,3585.5,3585.0,0.686193]
[1732900895373,0.56732088,3585.5,3585.0,3.475583]
[1732900895570,0.56732088,3585.5,3585.0,0.686193]
[1732900896727,0.8351,3585.9,3585.1,2.78925]
[1732900897073,3.62383,3585.9,3585.1,2.78925]
[1732900897273,3.62383,3585.9,3585.1,3.5440313]
[1732900897516,1.38596305,3585.9,3585.3,2.78915]
[1732900897729,0.8351,3586.8,3586.3,2.78838]
[1732900898017,0.8351,3587.2,3586.5,2.78821]
[1732900898380,0.8351,3587.2,3586.4,0.278838]
[1732900898381,3.62281,3587.2,3586.4,0.278838]
[1732900898713,0.5677114,3587.0,3586.4,3.067128]
[1732900898925,0.5677114,3587.0,3586.4,0.278838]
[1732900899141,3.6223,3587.9,3587.1,2.78774]
[1732900899285,0.8351,3587.9,3586.9,2.78792]
[1732900899634,0.56100738,3587.3,3586.9,2.78792]
[1732900900521,0.56100738,3587.3,3587.0,2.78784]
[1732900900906,0.8351,3587.9,3586.6,0.02787796]
[1732900901094,3.62228,3587.9,3587.1,2.78772]
[1732900901293,0.54867448,3587.7,3587.1,3.345283]
[1732900902318,0.54867448,3587.7,3587.2,2.78767]
[1732900902491,0.54867448,3587.7,3587.1,0.557563]
[1732900902682,0.54867448,3587.7,3587.0,2.78781]
[1732900902885,0.54867448,3587.7,3586.8,2.78797]
[1732900903121,2.78739,3587.6,3586.9,2.78786]
[1732900903343,0.54867448,3587.7,3586.9,2.78786]
[1732900903616,3.33597448,3587.7,3586.9,2.78786]
[1732900903833,3.33597448,3587.7,3587.0,3.345403]
[1732900903985,0.54867448,3587.7,3587.1,2.78776]
[1732900905135,3.33597448,3587.7,3587.0,3.345413]
[1732900905493,0.54867448,3587.7,3587.6,2.78737]
[1732900905679,0.54867448,3587.7,3586.5,1.3073]
[1732900905680,2.78653,3588.7,3587.9,2.7871]
[1732900905878,3.62208,3588.2,3586.7,2.78803]
[1732900906229,0.56192465,3588.0,3586.8,3.25855008]
[1732900906475,2.7876,3587.4,3586.7,2.788]
[1732900906633,0.8351,3587.9,3586.7,0.557622]
[1732900906827,0.8351,3587.9,3587.0,2.78777]
[1732900906828,2.78727,3587.8,3587.0,2.78777]
[1732900907137,2.78727,3587.8,3586.6,1.3338]
[1732900907138,0.8351,3587.9,3587.3,2.78754]
[1732900907338,3.62226,3587.9,3587.2,2.78767]
[1732900907542,0.8351,3587.9,3587.3,2.78754]
[1732900907742,0.8351,3587.9,3587.7,2.78724]
[1732900907959,0.8302,3588.4,3587.7,3.065964]
[1732900908154,0.57084851,3588.1,3587.7,0.278724]
[1732900908353,0.57084851,3588.1,3587.5,2.78745]
[1732900909061,2.78722,3587.8,3587.1,2.78775]
[1732900909847,2.78731,3587.7,3587.1,2.78775]
[1732900910208,2.78742,3587.6,3587.1,0.857567]
[1732900910393,0.8302,3587.6,3587.1,0.857567]
[1732900910720,3.35785851,3588.1,3587.1,0.857567]
[1732900910721,0.8302,3588.0,3587.3,2.78754]
[1732900910920,2.78716,3587.9,3587.1,3.645277]
[1732900911416,0.56511638,3587.4,3587.2,2.78763]
[1732900911575,0.56511638,3587.4,3587.2,0.3645197]
[1732900911773,0.8302,3588.0,3587.5,2.78742]
[1732900911984,0.8302,3588.0,3587.6,2.78731]
[1732900912202,0.5512283,3587.8,3587.6,2.78731]
[1732900912376,0.5512283,3587.8,3587.5,1.2612]
[1732900912377,2.78676,3588.4,3587.7,2.78729]
[1732900912574,0.55061477,3587.9,3587.7,2.78729]
[1732900913029,0.8302,3588.5,3587.6,2.78737]
[1732900913030,2.78687,3588.3,3587.6,2.78737]
[1732900913184,3.61688,3588.5,3587.6,2.78737]
[1732900913521,3.61688,3588.5,3587.2,1.7182197]
[1732900913522,0.57147477,3588.0,3587.2,1.7182197]
[1732900913693,0.57147477,3588.0,3587.5,2.78745]
[1732900913891,0.57147477,3588.0,3587.9,2.78714]
[1732900914093,0.8302,3588.9,3588.4,2.78675]
[1732900914293,0.8302,3588.9,3588.2,2.78687]
[1732900914499,0.8302,3588.9,3588.5,2.78667]
[1732900914681,0.8302,3588.9,3588.0,1.308]
[1732900914682,0.8302,3588.9,3588.6,2.78659]
[1732900914889,0.56567413,3588.9,3588.6,2.78659]
[1732900915084,2.78585,3589.6,3588.6,3.065239]
[1732900915286,0.56656654,3589.4,3588.6,3.065239]
[1732900915497,0.56656654,3589.4,3588.7,2.78649]
[1732900915498,2.78606,3589.3,3588.7,2.78649]
[1732900915729,2.78606,3589.3,3588.6,0.278659]
[1732900916099,0.56656654,3589.4,3588.4,2.78674]
[1732900916309,0.8302,3589.0,3588.4,2.78674]
[1732900916686,0.8302,3589.0,3588.5,2.78666]
[1732900917083,0.8302,3589.0,3588.6,2.78653]
[1732900917736,0.8302,3589.4,3588.9,2.7863]
[1732900918110,0.8302,3589.4,3588.1,0.55]
[1732900918316,0.55529382,3589.3,3589.1,2.78615]
[1732900918629,0.55529382,3589.3,3589.1,2.78613]
[1732900919017,0.55529382,3589.3,3588.9,2.78631]
[1732900919211,0.55529382,3589.3,3589.0,2.78628]
[1732900919399,0.55529382,3589.3,3589.1,2.78618]
[1732900919599,0.55529382,3589.3,3589.0,2.78628]
[1732900919600,3.61587,3589.8,3589.2,2.78613]
[1732900921025,2.78693,3588.2,3587.6,2.78735]
[1732900921205,2.78693,3588.2,3587.7,0.25888324]
[1732900921206,0.8302,3588.2,3587.7,0.25888324]
[1732900921546,3.61712,3588.2,3587.5,2.78744]
[1732900921701,3.61712,3588.2,3587.1,1.3475]
[1732900921702,2.78732,3587.7,3587.1,1.3475]
[1732900922015,2.78732,3587.7,3587.1,2.78776]
[1732900922444,0.56114782,3587.8,3587.2,2.78761]
[1732900922939,0.56114782,3587.8,3587.4,2.78752]
[1732900923098,0.56114782,3587.8,3587.0,5.78784]
[1732900923305,0.56114782,3587.8,3587.2,2.78768]
[1732900923605,0.56114782,3587.8,3587.1,2.78769]
[1732900923606,2.78735,3587.7,3587.1,2.78769]
[1732900923809,3.34836782,3587.8,3586.9,2.78787]
[1732900924019,0.56114782,3587.8,3586.9,2.78787]
[1732900924200,3.34837782,3587.8,3587.2,2.78768]
[1732900924401,3.34837782,3587.8,3586.9,3.202457]
[1732900924402,0.56114782,3587.8,3586.9,3.202457]
[1732900924713,0.56114782,3587.8,3587.0,3.46190435]
[1732900924925,0.56114782,3587.8,3587.3,2.78755]
[1732900925101,0.56114782,3587.8,3587.3,2.78756]
[1732900925559,0.56114782,3587.8,3587.4,0.25956506]
[1732900925740,0.56114782,3587.8,3586.8,3.0]
[1732900925741,2.78761,3587.3,3586.7,2.788]
[1732900926071,0.8302,3587.4,3586.8,0.25958763]
[1732900926383,0.8302,3587.4,3587.0,2.78779]
[1732900926676,0.56114782,3587.8,3587.0,2.78779]
[1732900926677,2.7873,3587.7,3587.1,0.25958763]
[1732900926882,1.39134782,3587.8,3587.2,3.04726763]
[1732900927040,1.39134782,3587.8,3587.4,2.78752]
[1732900927241,1.39134782,3587.8,3586.4,1.2998]
[1732900927482,2.78765,3587.3,3586.7,2.78806]
[1732900927774,2.78754,3587.4,3586.8,3.46427802]
[1732900927937,2.78754,3587.4,3586.9,0.67630802]
[1732900928137,2.78744,3587.6,3587.0,0.26014948]
[1732900928371,4.17858782,3587.8,3587.1,0.26014948]
[1732900928575,2.7875,3587.5,3587.2,0.26014948]
[1732900928784,1.39134782,3587.8,3586.5,2.7882]
[1732900928987,1.39134782,3587.8,3586.7,2.78807]
[1732900928988,2.78743,3587.6,3586.7,2.78807]
[1732900929284,2.78746,3587.5,3586.9,2.78788]
[1732900929487,4.17857782,3587.8,3587.0,0.26020677]
[1732900929488,2.78761,3587.3,3587.0,0.26020677]
[1732900929811,3.0,3588.1,3585.9,2.78869]
[1732900929812,2.78813,3586.7,3585.9,2.78869]
[1732900930079,2.78813,3586.7,3585.2,3.54646304]
[1732900930080,3.61874,3586.1,3586.0,0.26024837]
[1732900930288,2.78868,3586.0,3585.3,0.41619484]
[1732900930584,2.78868,3586.0,3585.4,0.67630889]
[1732900930787,2.78868,3586.0,3585.5,0.26011405]
[1732900931100,2.78868,3586.0,3585.3,3.52303448]
[1732900931101,0.56527973,3586.0,3585.8,2.78876]
[1732900931395,3.61848,3586.5,3585.9,3.04856006]
[1732900931551,3.61848,3586.5,3586.0,0.25990006]
[1732900931744,3.0,3587.0,3586.4,2.7883]
[1732900931745,0.8302,3587.0,3586.4,2.7883]
[1732900931945,0.8302,3587.0,3586.7,2.78807]
[1732900932249,2.78761,3587.3,3586.7,2.78802]
[1732900932471,2.78761,3587.3,3586.4,2.78824]
[1732900932472,2.78785,3587.0,3586.4,2.78824]
[1732900932717,0.54904279,3587.2,3586.5,0.25980943]
[1732900932885,0.54904279,3587.2,3586.6,3.04795943]
[1732900933048,0.54904279,3587.2,3586.6,2.78815]
[1732900933390,3.33678279,3587.2,3586.4,2.7883]
[1732900933589,3.33678279,3587.2,3586.6,2.7881]
[1732900933888,3.33678279,3587.2,3586.7,0.25977471]
[1732900934094,3.33678279,3587.2,3586.6,2.7881]
[1732900934392,3.33680279,3587.2,3586.7,0.2597767]
[1732900934691,3.33680279,3587.2,3586.4,0.5140656]
[1732900934899,3.33680279,3587.2,3586.6,2.78814]
[1732900935206,0.54904279,3587.2,3586.7,0.25974888]
[1732900935345,0.54904279,3587.2,3586.7,2.78806]
[1732900936287,0.54904279,3587.2,3587.0,2.78782]
[1732900936511,0.54904279,3587.2,3586.8,0.25972535]
[1732900936512,0.54904279,3587.2,3586.8,2.78799]
[1732900936741,0.54904279,3587.2,3586.5,0.33024456]
[1732900936742,2.78777,3587.1,3586.5,0.33024456]
[1732900936960,2.78807,3586.7,3586.6,0.25970059]
[1732900937162,2.78784,3587.0,3585.8,0.41553893]
[1732900937343,0.8159,3586.3,3585.9,0.6752246]
[1732900937554,3.60429,3586.3,3585.7,2.78884]
[1732900937775,3.60429,3586.3,3585.8,0.25973009]
[1732900937969,3.60429,3586.3,3585.7,3.346624]
[1732900938284,3.60429,3586.3,3585.8,0.25966261]
[1732900938285,0.8159,3586.3,3585.8,0.25966261]
[1732900938490,0.8159,3586.3,3585.8,2.7887]
[1732900938849,0.8159,3586.3,3585.6,2.78889]
[1732900939043,0.57127078,3586.1,3585.7,3.0484661]
[1732900939250,2.7878,3587.1,3585.7,3.0484661]
[1732900939251,0.8159,3586.7,3586.2,2.78846]
[1732900939450,0.55593053,3586.4,3586.2,2.78846]
[1732900939694,0.55593053,3586.4,3586.0,2.78862]
[1732900939857,0.8159,3586.7,3585.6,3.681975]
[1732900940056,3.0,3587.3,3586.7,2.78801]
[1732900940057,0.8159,3587.2,3586.7,2.78801]
[1732900940296,0.8159,3587.2,3585.8,4.7922047]
[1732900940297,0.5450529,3587.0,3586.5,2.78821]
[1732900940480,0.5450529,3587.0,3586.3,2.78836]
[1732900940652,3.3329429,3587.0,3586.4,2.7883]
[1732900940844,0.5450529,3587.0,3586.5,2.78821]
[1732900941052,0.5450529,3587.0,3586.6,2.78815]
[1732900941283,0.8159,3587.2,3586.8,2.78792]
[1732900942000,0.8159,3587.5,3586.9,2.78792]
[1732900942181,0.8159,3587.5,3587.1,2.78771]
[1732900942383,0.8159,3587.9,3586.6,4.2367]
[1732900942685,3.60219,3589.0,3587.8,2.78722]
[1732900942876,2.78675,3588.5,3587.5,2.78744]
[1732900943288,0.56390746,3587.9,3587.5,2.78744]
[1732900943488,2.78676,3588.4,3587.8,2.78719]
[1732900943994,0.8159,3588.7,3587.5,2.78744]
[1732900944288,0.8159,3588.0,3587.3,2.78759]
[1732900944503,2.78727,3587.8,3586.9,4.13846]
[1732900944646,2.78725,3587.8,3586.9,1.3506]
[1732900944851,2.78759,3587.4,3586.7,5.78802]
[1732900945050,2.78759,3587.4,3586.6,2.78814]
[1732900945051,2.78759,3587.4,3586.8,2.78799]
[1732900945253,0.8159,3587.2,3586.7,2.78802]
[1732900945860,2.78778,3587.1,3586.5,2.78822]
[1732900946196,2.78778,3587.1,3586.3,2.78835]
[1732900946197,2.78789,3587.0,3586.3,2.78835]
[1732900946349,2.78789,3587.0,3586.4,2.78829]
[1732900946990,0.8159,3587.0,3585.8,4.11681]
[1732900947189,3.60379,3587.0,3585.9,0.25970661]
[1732900947486,2.78819,3586.6,3586.0,2.78861]
[1732900948684,3.60375,3587.0,3586.1,2.78852]
[1732900948989,2.7884,3586.3,3585.6,2.78888]
[1732900949191,3.60379,3587.0,3585.8,2.78872]
[1732900949192,2.78828,3586.5,3585.8,2.78872]
[1732900949484,2.78828,3586.5,3585.7,3.479404]
[1732900949485,2.7884,3586.3,3585.7,3.479404]
[1732900949691,0.56880099,3586.2,3585.8,3.04890818]
[1732900949890,0.56880099,3586.2,3585.7,2.7888]
[1732900949891,2.78809,3586.7,3585.9,0.26016818]
[1732900950194,3.60376,3587.0,3586.2,2.78846]
[1732900950492,0.1,3588.4,3585.4,3.57749037]
[1732900950493,3.60344,3587.4,3586.8,2.78799]
[1732900950713,0.8159,3588.2,3586.5,2.78816]
[1732900950847,0.8159,3588.2,3587.3,4.06371]
[1732900951049,0.8159,3588.2,3587.5,2.78745]
[1732900951252,2.78683,3588.3,3587.5,3.193805]
[1732900951467,0.56813647,3588.1,3587.5,3.193805]
[1732900951672,3.35516647,3588.1,3587.6,0.26015767]
[1732900951874,0.56813647,3588.1,3587.3,1.2761]
[1732900952095,2.78734,3587.7,3587.1,2.78776]
[1732900952297,0.8159,3588.0,3587.2,0.26019075]
[1732900952607,0.8159,3588.0,3586.5,2.78822]
[1732900952608,2.78752,3587.5,3586.9,2.7879]
[1732900952823,2.78732,3587.7,3587.0,3.04803634]
[1732900953029,2.78751,3587.5,3587.1,0.26020634]
[1732900953306,2.78717,3587.9,3586.6,2.78815]
[1732900953459,0.54553823,3587.6,3587.3,2.7876]
[1732900953976,0.8159,3588.0,3586.7,0.414575]
[1732900953977,0.8159,3588.0,3587.5,2.78745]
[1732900954299,2.78722,3587.8,3587.2,1.3048]
[1732900954609,2.78722,3587.8,3587.3,0.26020594]
[1732900954762,2.78753,3587.4,3587.3,0.26020594]
[1732900954958,3.60343,3587.4,3587.3,0.26020594]
[1732900955391,2.7877,3587.2,3586.8,0.41644382]
[1732900955729,0.8159,3587.4,3586.1,1.73737657]
[1732900955730,2.78792,3586.9,3586.1,1.73737657]
[1732900955931,2.78761,3587.3,3586.1,1.91111423]
[1732900956127,0.8159,3587.4,3586.1,1.91111423]
[1732900956128,0.8159,3587.4,3586.1,3.39593423]
[1732900956289,3.60348,3587.4,3586.1,3.39593423]
[1732900956638,2.78811,3586.7,3586.1,3.39593423]
[1732900956988,2.78811,3586.7,3586.1,2.96225766]
[1732900957189,2.78811,3586.7,3586.2,0.26031543]
[1732900957389,2.78811,3586.7,3586.1,0.17373766]
[1732900957585,2.7884,3586.3,3585.7,4.13144]
[1732900957832,2.78824,3586.5,3585.7,4.13144]
[1732900958129,3.35330337,3586.6,3585.7,4.13144]
[1732900958337,0.56512337,3586.6,3585.7,1.3426]
[1732900958631,2.78839,3586.3,3585.8,2.78877]
[1732900958927,2.78828,3586.5,3585.8,2.78877]
[1732900959158,2.78835,3586.4,3585.8,2.78877]
[1732900960414,2.53155507,3586.3,3585.7,2.78885]
[1732900962101,2.53155507,3586.3,3585.5,2.78901]
[1732900962301,2.78855,3586.1,3585.5,3.205101]
[1732900962502,0.56890996,3585.9,3585.5,3.205071]
[1732900962752,3.60402,3586.7,3585.5,0.416091]
[1732900963034,2.78831,3586.4,3585.7,2.78885]
[1732900963237,2.78815,3586.6,3585.9,2.78868]
[1732900963547,2.78806,3586.8,3586.1,2.78854]
[1732900963835,0.54670478,3586.2,3586.1,2.78854]
[1732900964009,0.54670478,3586.2,3586.1,0.557716]
[1732900964935,3.33516478,3586.2,3585.6,3.0]
[1732900965118,0.54670478,3586.2,3585.7,2.78884]
[1732900965662,0.54670478,3586.2,3585.4,1.3719]
[1732900965807,2.78876,3585.9,3585.4,1.3719]
[1732900966013,2.78859,3586.1,3585.5,2.78896]
[1732900966407,2.78859,3586.1,3585.4,1.3719]
[1732900966603,2.7887,3585.9,3585.4,1.3719]
[1732900966824,2.78859,3586.1,3585.4,1.3719]
[1732900967027,2.78859,3586.1,3585.4,4.16093]
[1732900967222,2.78859,3586.1,3582.9,2.935]
[1732900967223,2.78891,3585.7,3585.1,1.3621]
[1732900967457,2.78854,3586.1,3584.8,2.78954]
[1732900967753,2.7891,3585.4,3584.8,2.78954]
[1732900967959,2.78901,3585.5,3584.9,3.51718396]
[1732900968252,2.78902,3585.5,3584.9,3.51718396]
[1732900968574,2.78908,3585.4,3584.9,3.51718396]
[1732900968854,0.56801537,3585.2,3584.9,3.51716396]
[1732900969057,0.56801537,3585.2,3585.0,2.78935]
[1732900969281,0.56801537,3585.2,3584.9,0.72772396]
[1732900969559,0.56801537,3585.2,3584.8,2.7895]
[1732900970582,3.35725537,3585.2,3584.7,1.69801961]
[1732900971111,0.56801537,3585.2,3584.7,1.69801961]
[1732900971348,0.56801537,3585.2,3584.8,2.78949]
[1732900972049,0.56801537,3585.2,3584.7,1.69801961]
[1732900972050,0.56801537,3585.2,3585.0,2.78938]
[1732900972267,0.8142,3586.5,3585.7,2.78878]
[1732900972416,2.7872,3587.9,3585.9,2.78864]
[1732900972417,2.78809,3586.7,3585.9,2.78864]
[1732900972621,4.0,3586.0,3585.9,4.0282]
[1732900972818,0.8142,3587.0,3585.9,4.709898]
[1732900973049,3.33879126,3586.4,3585.9,0.681698]
[1732900973362,0.55046126,3586.4,3585.9,3.470348]
[1732900973532,2.78839,3586.3,3585.9,0.681698]
[1732900974059,2.78839,3586.3,3585.7,2.7888]
[1732900974220,2.78839,3586.3,3585.6,1.2395]
[1732900974221,2.7884,3586.3,3585.8,2.7887]
[1732900974961,0.55046126,3586.4,3586.1,2.78848]
[1732900975161,0.55046126,3586.4,3585.7,2.78883]
[1732900975319,0.55046126,3586.4,3585.6,1.2395]
[1732900975320,2.78847,3586.2,3585.6,4.02838]
[1732900975519,2.78881,3585.8,3585.3,1.3221]
[1732900976158,2.78906,3585.5,3585.1,0.278938]
[1732900976321,2.78894,3585.6,3584.9,1.3221]
[1732900976524,2.78915,3585.4,3584.9,1.3221]
[1732900976962,2.78915,3585.4,3584.9,4.11156]
[1732900977431,2.78928,3585.2,3584.9,1.3221]
[1732900977651,2.78928,3585.2,3584.6,4.1573]
[1732900977821,2.78928,3585.2,3584.6,4.86438682]
[1732900978037,3.35898356,3585.4,3584.8,2.78955]
[1732900978349,2.78916,3585.3,3584.6,2.07468682]
[1732900978523,0.56988356,3585.4,3584.9,2.78947]
[1732900979440,3.35897356,3585.4,3584.7,2.78957]
[1732900979662,3.35897356,3585.4,3584.8,2.78955]
[1732900979867,0.56988356,3585.4,3584.9,2.78941]
[1732900980664,2.78933,3585.1,3584.6,0.70708682]
[1732900981017,2.78929,3585.2,3584.6,3.49678682]
[1732900981246,2.78935,3585.1,3584.4,2.7898]
[1732900981444,2.78929,3585.2,3584.3,0.1237082]
[1732900981445,2.78924,3585.2,3584.3,0.1237082]
[1732900981664,2.78986,3584.4,3584.3,0.1237082]
[1732900982348,2.78971,3584.6,3584.3,0.1237082]
[1732900982537,2.78986,3584.4,3584.3,0.1237082]
[1732900982734,2.78967,3584.7,3584.3,0.1237082]
[1732900983246,2.78985,3584.5,3584.3,0.1237082]
[1732900983459,3.35895228,3584.5,3584.3,0.1237082]
[1732900983651,2.78986,3584.4,3584.3,0.1237082]
[1732900984072,2.79056,3583.5,3583.4,5.0]
[1732900984287,3.60476,3583.5,3583.4,5.0]
[1732900986174,7.16547322,3583.5,3583.4,3.96070687]
[1732900986473,7.16547322,3583.5,3583.4,3.40200338]
[1732900990188,5.37491322,3583.5,3583.4,3.40200338]
[1732900990695,0.56071322,3583.5,3583.4,6.19264338]
[1732900991199,0.8142,3584.4,3583.7,2.79037]
[1732900991346,0.8142,3584.4,3583.4,4.54204446]
[1732900991684,0.8142,3584.4,3583.9,2.79023]
[1732900991894,0.8142,3584.8,3584.1,2.79008]
[1732900992061,4.0,3584.2,3584.1,2.79008]
[1732900992260,2.7897,3584.7,3583.4,4.54204446]
[1732900992472,2.7897,3584.7,3583.9,2.79024]
[1732900992876,3.8142,3584.8,3584.1,2.79007]
[1732900993293,3.60375,3584.8,3584.1,2.79007]
[1732900993595,0.5468198,3584.2,3583.9,2.79024]
[1732900994088,0.5468198,3584.2,3583.5,2.79055]
[1732900994294,0.8142,3584.1,3583.4,3.40200338]
[1732900994654,2.79019,3584.0,3583.4,3.40200338]
[1732900994849,2.79019,3584.0,3583.4,6.19264338]
[1732900995194,0.5468198,3584.2,3583.5,0.86096708]
[1732900995398,0.5468198,3584.2,3583.9,2.79025]
[1732900995566,0.5468198,3584.2,3584.1,2.7901]
[1732900995768,0.5468198,3584.2,3583.7,4.13599]
[1732900996089,0.5468198,3584.2,3583.4,6.19259338]
[1732900996250,3.3368598,3584.2,3583.4,3.40200338]
[1732900996453,2.79023,3584.0,3583.4,6.19264338]
[1732900996894,2.79023,3584.0,3583.4,3.40200338]
[1732900997059,2.79023,3584.0,3583.5,0.2786]
[1732900997060,2.79043,3583.7,3583.5,0.2786]
[1732900997263,0.8142,3584.1,3583.3,2.41702742]
[1732900997571,2.79064,3583.4,3583.3,2.41702742]
[1732901000102,3.3519085,3583.4,3583.3,2.41702742]
[1732901000989,0.5612685,3583.4,3583.3,2.41702742]
[1732901002528,0.5612685,3583.4,3583.3,5.20774742]
[1732901002798,2.79025,3583.9,3583.3,2.41702742]
[1732901003000,5.79023,3584.0,3583.3,2.41702742]
[1732901003175,0.5591465,3583.5,3583.3,2.41702742]
[1732901003962,0.5591465,3583.5,3583.3,5.20772742]
[1732901004167,0.5591465,3583.5,3583.3,2.41702742]
[1732901008643,0.5591465,3583.5,3583.3,5.20772742]
[1732901008793,0.5591465,3583.5,3583.4,2.79064]
[1732901009302,2.7901,3584.1,3583.5,2.79055]
[1732901009491,0.8203,3584.3,3583.5,2.79055]
[1732901009694,2.79008,3584.2,3583.6,2.79047]
[1732901009895,2.79012,3584.1,3583.4,1.335]
[1732901010434,3.0,3584.7,3583.3,5.20772742]
[1732901010435,2.79055,3583.6,3583.3,2.41702742]
[1732901011512,2.79057,3583.5,3583.3,2.41702742]
[1732901011932,6.34353703,3583.7,3583.3,2.41702742]
[1732901012316,0.55309703,3583.7,3583.3,2.41702742]
[1732901012512,2.79064,3583.4,3583.3,2.41702742]
[1732901013746,2.79054,3583.6,3583.3,2.41702742]
[1732901014250,0.55309703,3583.7,3583.3,2.41702742]
[1732901014457,3.55309703,3583.7,3583.3,2.41702742]
[1732901014741,0.55309703,3583.7,3583.3,5.20773742]
[1732901015739,3.55309703,3583.7,3583.3,2.41702742]
[1732901018110,3.34355703,3583.7,3583.3,2.41702742]
[1732901018310,2.79054,3583.6,3583.3,2.41702742]
[1732901018547,0.55309703,3583.7,3583.3,2.41702742]
[1732901018746,2.79059,3583.5,3583.3,2.41702742]
[1732901020747,2.79064,3583.4,3583.3,2.41702742]
[1732901020932,2.79049,3583.6,3583.3,2.41702742]
[1732901021264,0.55309703,3583.7,3583.6,2.79049]
[1732901021542,2.79,3584.3,3583.7,2.7904]
[1732901021703,4.0,3583.8,3583.7,2.7904]
[1732901021909,7.34466932,3583.8,3583.4,1.3691]
[1732901022155,4.55433932,3583.8,3583.4,1.3691]
[1732901022311,0.55433932,3583.8,3583.4,1.3691]
[1732901022647,0.55433932,3583.8,3583.4,4.15973]
[1732901023216,0.55433932,3583.8,3583.5,3.46915993]
[1732901023411,0.55433932,3583.8,3583.5,0.93675374]
[1732901023610,0.55433932,3583.8,3583.5,2.7905]
[1732901023909,0.55433932,3583.8,3583.6,2.79046]
[1732901024653,0.55433932,3583.8,3583.4,1.3691]
[1732901025148,0.55433932,3583.8,3583.3,2.41702742]
[1732901025453,2.79042,3583.7,3583.3,2.41702742]
[1732901025609,0.55433932,3583.8,3583.3,2.41702742]
[1732901025815,0.55433932,3583.8,3583.4,2.79062]
[1732901026016,0.55433932,3583.8,3583.6,2.79046]
[1732901026238,0.55433932,3583.8,3583.3,2.41702742]
[1732901026645,0.55433932,3583.8,3583.4,2.79058]
[1732901027241,2.79042,3583.7,3583.3,2.41702742]
[1732901027541,2.7905,3583.6,3583.3,2.41702742]
[1732901028357,2.79042,3583.7,3583.3,2.41702742]
[1732901028560,2.79056,3583.6,3583.3,2.41702742]
[1732901029462,2.79049,3583.6,3583.3,2.41702742]
[1732901029953,2.79064,3583.4,3583.3,2.41702742]
[1732901030153,3.64739,3583.6,3583.3,2.41702742]
[1732901030331,2.79057,3583.5,3583.3,2.41702742]
[1732901030534,2.79049,3583.6,3583.3,2.41702742]
[1732901031154,3.34467932,3583.8,3583.3,2.41702742]
[1732901031358,3.34467932,3583.8,3583.4,1.3265]
[1732901032152,2.79042,3583.7,3583.3,2.41702742]
[1732901032357,2.79054,3583.6,3583.3,2.41702742]
[1732901032715,2.79041,3583.7,3583.3,2.41702742]
[1732901033074,2.78924,3585.2,3584.0,1.2826]
[1732901033219,2.78929,3585.2,3584.1,1.2826]
[1732901033423,2.78922,3585.3,3584.6,2.78965]
[1732901033725,0.8569,3585.6,3584.1,1.2826]
[1732901033726,2.78961,3584.8,3584.1,1.2826]
[1732901033924,1.40434952,3584.8,3584.1,1.2826]